bitfinex/quotes_BTCUSD_20241206
["timestamp","ask_amount","ask_price","bid_price","bid_amount"]
[1733494019645,0.45779054,98639.0,98638.0,0.00017447]
[1733494019851,0.30779054,98639.0,98638.0,0.04917447]
[1733494020322,0.253,98643.0,98642.0,0.049]
[1733494020507,0.09062095,98659.0,98654.0,0.049]
[1733494020508,0.253,98659.0,98654.0,0.049]
[1733494020721,0.11703154,98655.0,98654.0,0.049]
[1733494020961,0.11703154,98655.0,98654.0,0.06374707]
[1733494021178,0.11403154,98655.0,98654.0,0.049]
[1733494021404,0.10503154,98655.0,98654.0,0.049]
[1733494022310,0.10903154,98655.0,98654.0,0.049]
[1733494022979,0.10903154,98655.0,98637.0,0.202762]
[1733494023189,0.202741,98648.0,98647.0,0.049]
[1733494023398,0.30777254,98648.0,98647.0,0.049]
[1733494024497,0.10503154,98648.0,98647.0,0.049]
[1733494024716,0.10503154,98648.0,98635.0,0.202767]
[1733494024717,0.253,98659.0,98658.0,0.049]
[1733494024912,0.35803154,98659.0,98658.0,0.049]
[1733494025349,0.005,98648.0,98647.0,0.049]
[1733494025570,0.56074954,98659.0,98647.0,0.072]
[1733494025571,0.10503154,98658.0,98647.0,0.072]
[1733494025797,0.10503154,98658.0,98657.0,0.251722]
[1733494026012,0.256,98659.0,98658.0,0.049]
[1733494026242,0.253,98659.0,98658.0,0.049]
[1733494026457,0.253,98659.0,98658.0,0.06373406]
[1733494026915,0.255,98659.0,98658.0,0.049]
[1733494027129,0.255,98659.0,98658.0,0.06373406]
[1733494027354,0.253,98659.0,98658.0,0.06373406]
[1733494027581,0.255,98659.0,98658.0,0.06373406]
[1733494028005,0.255,98659.0,98658.0,0.08673406]
[1733494028274,0.258,98659.0,98658.0,0.08673406]
[1733494028694,0.005,98659.0,98658.0,0.13673406]
[1733494028900,0.002,98659.0,98658.0,0.13774751]
[1733494029347,0.002,98659.0,98658.0,0.18774751]
[1733494029348,0.004,98659.0,98658.0,0.18774751]
[1733494029810,0.002,98659.0,98658.0,0.18774751]
[1733494030016,0.002,98659.0,98658.0,0.39296377]
[1733494030222,0.004,98659.0,98658.0,0.39195032]
[1733494030634,0.0017304,98660.0,98659.0,0.374718]
[1733494030839,0.0017304,98660.0,98659.0,0.47974954]
[1733494031048,0.0017304,98660.0,98659.0,0.49439763]
[1733494031458,0.001741,98670.0,98669.0,0.099]
[1733494031664,0.001741,98670.0,98669.0,0.37571028]
[1733494031876,0.001741,98670.0,98669.0,0.3893359]
[1733494032086,0.001741,98670.0,98669.0,0.5157359]
[1733494032725,0.001741,98680.0,98679.0,0.374677]
[1733494032953,0.001741,98680.0,98679.0,0.47970854]
[1733494033177,0.00191525,98680.0,98679.0,0.47970854]
[1733494033396,0.00191525,98680.0,98679.0,0.49433826]
[1733494033808,0.00191525,98680.0,98679.0,0.24030672]
[1733494034016,0.00191525,98680.0,98679.0,0.28930672]
[1733494034239,0.00291525,98680.0,98679.0,0.29030672]
[1733494034665,0.00291525,98680.0,98679.0,0.09562972]
[1733494034872,0.00191525,98680.0,98679.0,0.06362972]
[1733494035079,0.00191525,98680.0,98679.0,0.06762972]
[1733494035493,0.00191525,98680.0,98679.0,0.06462972]
[1733494035698,0.00291525,98680.0,98679.0,0.06462972]
[1733494036160,0.00291525,98680.0,98679.0,0.06362972]
[1733494036368,0.00291525,98680.0,98679.0,0.08662972]
[1733494036584,0.31162179,98680.0,98679.0,0.05918318]
[1733494036784,0.31162179,98680.0,98679.0,0.049]
[1733494037012,0.30962179,98680.0,98679.0,0.049]
[1733494037250,1.95962179,98680.0,98679.0,0.049]
[1733494037467,1.96062179,98680.0,98679.0,0.049]
[1733494037678,1.95962179,98680.0,98679.0,0.049]
[1733494038103,1.96062179,98680.0,98679.0,0.049]
[1733494038316,1.95962179,98680.0,98679.0,0.049]
[1733494038739,1.96062179,98680.0,98679.0,0.049]
[1733494039187,1.75794679,98680.0,98670.0,0.049]
[1733494039394,0.352693,98671.0,98670.0,0.049]
[1733494039614,0.45772454,98671.0,98670.0,0.05073]
[1733494039876,0.45772454,98671.0,98670.0,0.00173]
[1733494040083,0.202756,98641.0,98630.0,0.01080109]
[1733494040296,0.202776,98631.0,98630.0,0.01080109]
[1733494040510,0.30780754,98631.0,98630.0,0.05980109]
[1733494040721,0.10503154,98631.0,98630.0,0.049869]
[1733494041385,0.10503154,98631.0,98630.0,0.05842119]
[1733494041601,0.11103154,98631.0,98630.0,0.05104347]
[1733494041821,0.10503154,98631.0,98630.0,0.05004347]
[1733494042028,0.10503154,98631.0,98630.0,0.05959566]
[1733494042029,0.11103154,98631.0,98630.0,0.05959566]
[1733494042515,0.11103154,98631.0,98630.0,0.05104347]
[1733494043151,0.11303154,98631.0,98630.0,0.05104347]
[1733494043356,0.10703154,98631.0,98630.0,0.05004347]
[1733494043578,0.10503154,98631.0,98630.0,0.05004347]
[1733494043836,0.10903154,98631.0,98630.0,0.05004347]
[1733494044058,0.10703154,98631.0,98630.0,0.05004347]
[1733494044267,0.10703154,98631.0,98630.0,0.07304347]
[1733494044268,0.006,98631.0,98630.0,0.07304347]
[1733494044477,0.10903154,98631.0,98630.0,0.05004347]
[1733494044686,0.10503154,98631.0,98630.0,0.05859566]
[1733494044920,0.10903154,98631.0,98630.0,0.05004347]
[1733494045135,0.10503154,98631.0,98630.0,0.05865417]
[1733494045751,0.10503154,98631.0,98630.0,0.05004347]
[1733494046645,0.11103154,98631.0,98630.0,0.05864573]
[1733494047084,0.11303154,98631.0,98630.0,0.05864573]
[1733494047535,0.11503154,98631.0,98630.0,0.05864573]
[1733494049325,0.11503154,98631.0,98630.0,0.05004347]
[1733494049536,0.10703154,98631.0,98630.0,0.05870323]
[1733494049743,0.10703154,98631.0,98630.0,0.05004347]
[1733494049955,0.10903154,98631.0,98630.0,0.05004347]
[1733494050155,0.10703154,98631.0,98630.0,0.05004347]
[1733494050576,0.10903154,98631.0,98630.0,0.05004347]
[1733494051019,0.11103154,98631.0,98630.0,0.25282147]
[1733494051243,0.11103154,98631.0,98630.0,0.26149024]
[1733494051483,0.10903154,98631.0,98630.0,0.26149024]
[1733494051732,0.11103154,98631.0,98630.0,0.26149024]
[1733494052184,0.11103154,98631.0,98630.0,0.05871224]
[1733494052396,0.26103154,98631.0,98630.0,0.05004347]
[1733494052628,0.25703154,98631.0,98630.0,0.05004347]
[1733494053074,0.25903154,98631.0,98630.0,0.05004347]
[1733494053282,0.25703154,98631.0,98630.0,0.05004347]
[1733494053497,0.26103154,98631.0,98630.0,0.05004347]
[1733494053725,0.26103154,98631.0,98630.0,0.00104347]
[1733494053726,0.25903154,98631.0,98630.0,0.00104347]
[1733494053923,0.25503154,98631.0,98630.0,0.00104347]
[1733494054136,0.26103154,98631.0,98630.0,0.00104347]
[1733494054336,1.76103154,98631.0,98630.0,0.00104347]
[1733494054915,1.75903154,98631.0,98630.0,0.00104347]
[1733494055372,2.00903154,98631.0,98630.0,4.7e-07]
[1733494055597,0.352817,98611.0,98610.0,0.000869]
[1733494055789,0.45784854,98611.0,98610.0,0.000869]
[1733494056877,0.46684854,98611.0,98610.0,0.001869]
[1733494057090,1.96684854,98611.0,98610.0,0.001869]
[1733494057295,1.95784854,98611.0,98610.0,0.000869]
[1733494057516,1.95784854,98611.0,98610.0,0.001869]
[1733494057517,1.96684854,98611.0,98610.0,0.001869]
[1733494057743,1.97184854,98611.0,98610.0,0.001869]
[1733494058178,0.26403154,98611.0,98610.0,0.050869]
[1733494059044,0.11403154,98611.0,98610.0,0.050869]
[1733494059477,0.17801605,98640.0,98630.0,0.049]
[1733494059689,0.35820566,98631.0,98630.0,0.049]
[1733494059904,0.202802,98618.0,98615.0,0.049]
[1733494060138,0.43370566,98631.0,98610.0,0.000869]
[1733494060139,0.202817,98611.0,98610.0,0.000869]
[1733494060345,0.31684854,98611.0,98610.0,0.049869]
[1733494060552,0.30784854,98611.0,98610.0,0.000869]
[1733494060759,0.45784854,98611.0,98610.0,0.000869]
[1733494061594,0.46284854,98611.0,98610.0,0.000869]
[1733494062669,0.47184854,98611.0,98610.0,0.001869]
[1733494062872,0.46284854,98611.0,98610.0,0.000869]
[1733494063318,0.47184854,98611.0,98610.0,0.001869]
[1733494063531,0.46684854,98611.0,98610.0,0.001869]
[1733494063736,0.47184854,98611.0,98610.0,0.001869]
[1733494063976,0.46284854,98611.0,98610.0,0.000869]
[1733494064194,2.14711207,98611.0,98610.0,0.000869]
[1733494064426,2.14711207,98611.0,98610.0,0.001869]
[1733494064427,2.15611207,98611.0,98610.0,0.001869]
[1733494064606,2.16111207,98611.0,98610.0,0.001869]
[1733494065664,2.15211207,98611.0,98610.0,0.000869]
[1733494065876,2.16111207,98611.0,98610.0,0.000869]
[1733494066088,2.15611207,98611.0,98610.0,0.000869]
[1733494066311,0.57765754,98611.0,98610.0,0.000869]
[1733494066534,0.59165754,98611.0,98610.0,0.000869]
[1733494066991,2.08665754,98611.0,98610.0,0.000869]
[1733494067424,2.09165754,98611.0,98610.0,0.000869]
[1733494067859,0.59165754,98611.0,98610.0,0.000869]
[1733494068068,0.84515754,98611.0,98610.0,0.000869]
[1733494068727,0.57534854,98611.0,98610.0,0.000869]
[1733494068933,0.32184854,98611.0,98610.0,0.000869]
[1733494069745,0.31284854,98611.0,98610.0,0.000869]
[1733494070386,0.36353154,98611.0,98610.0,0.049869]
[1733494070634,0.36753154,98611.0,98610.0,0.049869]
[1733494071296,0.37253154,98611.0,98610.0,0.05861687]
[1733494071507,0.37253154,98611.0,98610.0,0.049869]
[1733494071738,0.51753154,98611.0,98610.0,0.049869]
[1733494071945,0.50853154,98611.0,98610.0,0.049869]
[1733494072192,0.52253154,98611.0,98610.0,0.001869]
[1733494072397,0.61842646,98611.0,98610.0,0.000869]
[1733494072605,0.51353154,98611.0,98610.0,0.000869]
[1733494072812,0.60373154,98611.0,98610.0,0.001869]
[1733494073474,0.59473154,98611.0,98610.0,0.000869]
[1733494073655,0.69962646,98611.0,98610.0,0.000869]
[1733494073825,0.69462646,98611.0,98610.0,0.000869]
[1733494074040,0.63633154,98611.0,98610.0,0.000869]
[1733494074241,2.14133154,98611.0,98610.0,0.000869]
[1733494074620,0.15,98590.0,98581.0,0.049]
[1733494074854,0.352876,98582.0,98581.0,0.049]
[1733494075062,0.45790754,98582.0,98581.0,0.049]
[1733494076045,0.45790754,98582.0,98576.0,0.049]
[1733494076046,0.352887,98577.0,98576.0,0.049]
[1733494076257,0.352899,98571.0,98570.0,0.0017288]
[1733494076462,0.45793054,98571.0,98570.0,0.0017288]
[1733494077632,0.71143054,98571.0,98570.0,0.0017288]
[1733494077865,2.31632546,98571.0,98570.0,0.0017288]
[1733494078606,2.21543054,98571.0,98570.0,0.0017288]
[1733494078808,2.21143054,98571.0,98570.0,0.0017288]
[1733494079020,1.96693054,98571.0,98570.0,0.0017288]
[1733494079234,1.97093054,98571.0,98570.0,0.0017288]
[1733494079924,1.96193054,98571.0,98570.0,0.0017288]
[1733494080136,0.47093054,98571.0,98570.0,0.0017288]
[1733494080547,0.46693054,98571.0,98570.0,0.0017288]
[1733494080763,0.47093054,98571.0,98570.0,0.0017288]
[1733494080967,0.50419186,98571.0,98570.0,0.0017288]
[1733494081403,0.46193054,98571.0,98570.0,0.0017288]
[1733494081818,0.46693054,98571.0,98570.0,0.0017288]
[1733494082018,0.46193054,98571.0,98570.0,0.0017288]
[1733494082200,0.47093054,98571.0,98570.0,0.0017288]
[1733494082662,0.71543054,98571.0,98570.0,8e-07]
[1733494082879,0.82032546,98571.0,98570.0,8e-07]
[1733494083511,0.352955,98544.0,98543.0,0.0470008]
[1733494083749,0.45798654,98544.0,98543.0,0.0470008]
[1733494084438,0.56288146,98544.0,98543.0,0.0470008]
[1733494084642,0.45798654,98544.0,98543.0,0.0470008]
[1733494084851,0.45798654,98544.0,98543.0,0.04758015]
[1733494085715,0.45018654,98544.0,98543.0,0.04758015]
[1733494086552,0.45018654,98544.0,98543.0,0.00057935]
[1733494087208,0.55508146,98544.0,98543.0,0.00057935]
[1733494087421,0.55508146,98544.0,98540.0,0.0008646]
[1733494087422,0.352957,98543.0,98540.0,0.0008646]
[1733494087622,0.25503154,98541.0,98540.0,6e-07]
[1733494087875,1.75503154,98541.0,98540.0,6e-07]
[1733494088099,1.82164535,98541.0,98540.0,6e-07]
[1733494088325,0.203,98522.0,98520.0,0.0008701]
[1733494088543,0.70803154,98522.0,98520.0,0.0008701]
[1733494088975,1.95803154,98522.0,98520.0,0.0008701]
[1733494089595,1.96703154,98522.0,98520.0,0.0008701]
[1733494089799,1.95803154,98522.0,98520.0,0.0008701]
[1733494090042,0.45803154,98522.0,98520.0,0.0008701]
[1733494090274,0.71153154,98522.0,98520.0,0.0478709]
[1733494090525,0.50853154,98522.0,98520.0,0.0478709]
[1733494090730,0.50853154,98522.0,98521.0,0.07263698]
[1733494090731,0.10903154,98522.0,98521.0,0.07263698]
[1733494090962,0.10903154,98522.0,98521.0,0.09563698]
[1733494090963,0.004,98522.0,98521.0,0.09563698]
[1733494091185,0.013,98522.0,98521.0,0.17985048]
[1733494091386,0.0005801,98544.0,98543.0,0.0470008]
[1733494091593,0.10561164,98544.0,98543.0,0.0470008]
[1733494091795,0.10561164,98544.0,98543.0,0.05240214]
[1733494092017,0.10561164,98544.0,98543.0,0.0470008]
[1733494092226,0.0005801,98544.0,98543.0,0.1467008]
[1733494092436,0.0017316,98580.0,98565.0,0.0470008]
[1733494092648,0.10503154,98566.0,98547.0,0.0470008]
[1733494092847,0.30797754,98548.0,98543.0,0.00540134]
[1733494093064,0.202963,98540.0,98539.0,0.0470008]
[1733494093287,0.30799454,98540.0,98539.0,0.0470008]
[1733494093516,0.10503154,98540.0,98534.0,0.0470008]
[1733494093726,0.25,98545.0,98521.0,0.07263698]
[1733494093727,0.15,98525.0,98521.0,0.07263698]
[1733494093912,0.15,98525.0,98524.0,0.0470008]
[1733494094156,0.25503154,98525.0,98524.0,0.0470008]
[1733494094799,0.352996,98524.0,98523.0,0.0470008]
[1733494095009,0.203,98522.0,98521.0,0.02621628]
[1733494095217,0.45803154,98522.0,98521.0,0.02621628]
[1733494095425,1.95803154,98522.0,98521.0,0.02621628]
[1733494095630,2.21153154,98522.0,98521.0,0.02621628]
[1733494096094,2.00853154,98522.0,98521.0,0.02621628]
[1733494096299,2.01053154,98522.0,98521.0,0.02621628]
[1733494096735,2.01053154,98522.0,98521.0,0.07321708]
[1733494096945,2.01153154,98522.0,98521.0,0.07321708]
[1733494097364,0.51153154,98522.0,98521.0,0.07321708]
[1733494098007,0.51153154,98522.0,98521.0,0.02621628]
[1733494098638,0.50953154,98522.0,98521.0,0.02621628]
[1733494098841,0.52741289,98522.0,98521.0,0.02621628]
[1733494099064,0.52641289,98522.0,98521.0,0.02621628]
[1733494099271,0.52741289,98522.0,98521.0,0.07321708]
[1733494099686,0.51153154,98522.0,98521.0,0.07321708]
[1733494099888,0.51053154,98522.0,98521.0,0.07321708]
[1733494100080,0.51453154,98522.0,98521.0,0.07321708]
[1733494100395,0.51453154,98522.0,98521.0,0.02621628]
[1733494100591,0.51053154,98522.0,98521.0,0.02621628]
[1733494100812,0.50853154,98522.0,98521.0,0.07321708]
[1733494101021,0.52153154,98522.0,98521.0,0.07321708]
[1733494101223,0.36253154,98522.0,98521.0,0.07321708]
[1733494101541,0.37153154,98522.0,98521.0,0.0788938]
[1733494101741,0.36253154,98522.0,98521.0,0.0788938]
[1733494102189,0.2625,98522.0,98521.0,0.1806938]
[1733494102372,0.2575,98522.0,98521.0,0.1806938]
[1733494102810,0.25,98572.0,98521.0,0.1806938]
[1733494102811,0.17801605,98560.0,98521.0,0.1806938]
[1733494103057,0.2535,98546.0,98523.0,0.023]
[1733494103201,0.10503154,98545.0,98523.0,0.023]
[1733494103402,0.10503154,98545.0,98524.0,0.00566737]
[1733494103605,0.10503154,98545.0,98544.0,0.0470008]
[1733494103804,0.25503154,98545.0,98544.0,0.0470008]
[1733494104068,0.10503154,98545.0,98544.0,0.0470008]
[1733494104278,0.2535,98546.0,98545.0,0.0470008]
[1733494104479,0.35853154,98546.0,98545.0,0.0470008]
[1733494104681,0.35853154,98546.0,98545.0,0.05265657]
[1733494104682,0.10503154,98546.0,98545.0,0.05265657]
[1733494105409,0.26712272,98546.0,98545.0,0.00565577]
[1733494105614,0.26712272,98546.0,98521.0,0.10501628]
[1733494105615,0.15,98545.0,98541.0,0.0470008]
[1733494105821,0.15,98539.0,98521.0,0.02621628]
[1733494106057,0.15,98531.0,98530.0,0.0470008]
[1733494106262,0.25503154,98531.0,98530.0,0.0470008]
[1733494106912,0.25503154,98531.0,98530.0,0.05265885]
[1733494107218,0.25903154,98531.0,98530.0,0.05265885]
[1733494107618,0.25903154,98531.0,98530.0,0.0470008]
[1733494108006,0.26203154,98531.0,98530.0,0.0470008]
[1733494108547,0.10803154,98531.0,98530.0,0.0470008]
[1733494108935,0.0017316,98580.0,98579.0,0.0470008]
[1733494109194,0.0017316,98580.0,98579.0,0.3498828]
[1733494109399,0.202774,98632.0,98614.0,0.0470008]
[1733494109608,0.202774,98632.0,98585.0,0.05]
[1733494109609,0.30492481,98629.0,98626.0,0.0470008]
[1733494109834,0.040602,98644.0,98585.0,0.05]
[1733494109835,0.10503154,98627.0,98619.0,0.0470008]
[1733494110012,0.202786,98626.0,98619.0,0.0470008]
[1733494110143,0.0008653,98630.0,98597.0,0.202845]
[1733494110144,0.10503154,98625.0,98624.0,0.0470008]
[1733494110369,0.10503154,98625.0,98624.0,0.05186316]
[1733494111018,0.00103942,98630.0,98629.0,0.0470008]
[1733494111220,0.10607096,98630.0,98629.0,0.0470008]
[1733494112025,0.25607096,98630.0,98629.0,0.0470008]
[1733494112663,0.25607096,98630.0,98589.0,0.22315638]
[1733494112664,0.25607096,98630.0,98623.0,0.0470008]
[1733494112864,0.25607096,98630.0,98618.0,0.0470008]
[1733494112865,0.15,98626.0,98618.0,0.0470008]
[1733494113075,0.00103942,98630.0,98618.0,0.0470008]
[1733494113076,0.15,98624.0,98618.0,0.0470008]
[1733494113301,0.15,98622.0,98618.0,0.0470008]
[1733494113507,0.10503154,98621.0,98618.0,0.0470008]
[1733494113713,0.352798,98620.0,98618.0,0.0470008]
[1733494113928,0.25503154,98619.0,98618.0,0.0470008]
[1733494114131,1.75503154,98619.0,98618.0,0.0470008]
[1733494114811,0.15,98617.0,98613.0,0.0470008]
[1733494115022,0.17905547,98630.0,98613.0,0.0470008]
[1733494115023,0.20281,98614.0,98613.0,0.0470008]
[1733494115230,0.45784154,98614.0,98612.0,0.0470008]
[1733494115445,0.001,98619.0,98579.0,0.073]
[1733494115446,0.15,98612.0,98579.0,0.023]
[1733494115650,0.15,98609.0,98602.0,0.0470008]
[1733494115875,0.15,98599.0,98589.0,0.0470008]
[1733494116092,0.34788122,98608.0,98589.0,0.0470008]
[1733494116093,0.15,98593.0,98589.0,0.0470008]
[1733494116294,1.65,98590.0,98589.0,0.0470008]
[1733494116530,1.65,98590.0,98556.0,0.06999513]
[1733494116531,0.15,98584.0,98581.0,0.0470008]
[1733494116754,0.202871,98585.0,98581.0,0.0470008]
[1733494116755,0.15,98582.0,98581.0,0.0470008]
[1733494116962,0.25503154,98582.0,98581.0,0.0470008]
[1733494117581,0.25520553,98582.0,98581.0,0.0470008]
[1733494118222,0.25520553,98582.0,98581.0,0.2498788]
[1733494118702,0.00517399,98582.0,98581.0,0.00679203]
[1733494118905,0.00517399,98582.0,98571.0,0.023]
[1733494119153,0.00517399,98582.0,98581.0,0.00679203]
[1733494119358,0.00517399,98582.0,98574.0,0.023]
[1733494119562,0.00617399,98582.0,98581.0,0.00679203]
[1733494119775,0.00617399,98582.0,98572.0,0.202897]
[1733494119995,0.00617399,98582.0,98581.0,0.00679203]
[1733494120206,0.00517399,98582.0,98575.0,0.023]
[1733494120448,0.00517399,98582.0,98581.0,0.00679203]
[1733494120650,0.00217399,98582.0,98576.0,0.00679479]
[1733494120855,0.00617399,98582.0,98577.0,0.023]
[1733494121075,0.00617399,98582.0,98577.0,0.00679424]
[1733494121308,0.00217399,98582.0,98571.0,0.225899]
[1733494121509,0.00217399,98582.0,98575.0,0.001]
[1733494121719,0.00017399,98582.0,98575.0,0.202889]
[1733494121919,0.10503154,98581.0,98576.0,0.00679479]
[1733494122122,0.10503154,98581.0,98577.0,0.001]
[1733494122123,0.10409742,98581.0,98577.0,0.001]
[1733494122552,0.10409742,98581.0,98571.0,0.202897]
[1733494122553,0.00217399,98582.0,98579.0,0.023]
[1733494122771,0.00017399,98582.0,98581.0,0.023]
[1733494122976,0.00217399,98582.0,98581.0,0.023]
[1733494123219,0.00217399,98582.0,98581.0,0.02978191]
[1733494123427,0.00017399,98582.0,98581.0,0.02978191]
[1733494123833,0.00517399,98582.0,98581.0,0.07978191]
[1733494124038,0.00517399,98582.0,98581.0,0.08079608]
[1733494124274,0.0017318,98590.0,98581.0,0.08079608]
[1733494124275,0.0017318,98590.0,98588.0,0.023]
[1733494124489,0.0017318,98590.0,98589.0,0.22687615]
[1733494124689,0.0017318,98590.0,98589.0,0.23263134]
[1733494124896,0.00079768,98590.0,98589.0,0.23263134]
[1733494125800,0.00179768,98590.0,98589.0,0.23463134]
[1733494127385,0.00179768,98590.0,98589.0,0.53966288]
[1733494127973,0.0008653,98630.0,98625.0,0.023]
[1733494128179,0.10503154,98629.0,98625.0,0.023]
[1733494128378,0.10503154,98629.0,98627.0,0.023]
[1733494129144,0.10520579,98629.0,98627.0,0.023]
[1733494129606,0.10520579,98629.0,98602.0,0.05]
[1733494129841,0.10520579,98629.0,98598.0,0.023]
[1733494130042,0.10920579,98629.0,98600.0,0.023]
[1733494130251,0.10920579,98629.0,98603.0,0.00681627]
[1733494130422,0.10920579,98629.0,98601.0,0.05101405]
[1733494130423,0.10920579,98629.0,98613.0,0.023]
[1733494130851,0.10920579,98629.0,98612.0,0.202815]
[1733494131054,0.11620579,98629.0,98625.0,0.001]
[1733494131260,0.10520579,98629.0,98618.0,0.023]
[1733494131671,0.11220579,98629.0,98613.0,0.024]
[1733494131819,0.10920579,98629.0,98613.0,0.023]
[1733494132066,0.10920579,98629.0,98615.0,0.023]
[1733494132270,0.11620579,98629.0,98625.0,0.001]
[1733494132433,0.11620579,98629.0,98610.0,0.023]
[1733494132434,0.10920579,98629.0,98610.0,0.023]
[1733494132634,1.5,98628.0,98626.0,0.00425154]
[1733494132833,0.10503154,98627.0,98610.0,0.023]
[1733494133059,0.10503154,98627.0,98612.0,0.023]
[1733494133421,0.10503154,98627.0,98610.0,0.00101399]
[1733494133948,0.10503154,98627.0,98613.0,0.001]
[1733494133949,1.5,98626.0,98613.0,0.001]
[1733494134151,0.10503154,98625.0,98611.0,0.023]
[1733494134374,0.10503154,98625.0,98605.0,0.202829]
[1733494134594,0.10503154,98625.0,98610.0,0.001]
[1733494134753,0.10503154,98625.0,98610.0,0.023]
[1733494134962,0.10503154,98625.0,98611.0,0.202817]
[1733494135165,0.006,98626.0,98613.0,0.001]
[1733494135365,0.006,98626.0,98619.0,0.023]
[1733494135593,0.00017425,98629.0,98616.0,0.202806]
[1733494135594,0.003,98625.0,98616.0,0.202806]
[1733494135793,0.003,98625.0,98617.0,0.023]
[1733494135794,0.008,98625.0,98617.0,0.023]
[1733494135970,0.005,98625.0,98617.0,0.023]
[1733494136571,0.005,98625.0,98612.0,0.023]
[1733494136775,0.005,98625.0,98614.0,0.023]
[1733494136970,0.005,98625.0,98615.0,0.00101392]
[1733494137148,0.003,98626.0,98615.0,0.00101392]
[1733494137352,0.006,98626.0,98619.0,0.001]
[1733494137761,0.003,98625.0,98615.0,0.00101392]
[1733494137971,0.008,98625.0,98615.0,0.00101392]
[1733494138202,0.005,98625.0,98615.0,0.00101392]
[1733494138864,0.003,98626.0,98615.0,0.00101392]
[1733494139068,0.006,98626.0,98619.0,0.001]
[1733494139211,0.003,98625.0,98619.0,0.001]
[1733494139891,0.003,98625.0,98620.0,0.02401392]
[1733494140117,0.003,98625.0,98624.0,0.22579]
[1733494140315,0.003,98625.0,98624.0,0.42579]
[1733494140457,0.00017425,98629.0,98628.0,0.05]
[1733494140658,0.00017425,98629.0,98628.0,0.25405802]
[1733494140866,0.00017425,98629.0,98628.0,0.25304437]
[1733494141877,0.00017425,98629.0,98628.0,0.33324437]
[1733494142074,0.00117425,98629.0,98628.0,0.34024437]
[1733494142353,0.00017425,98629.0,98628.0,0.33324437]
[1733494142799,0.00017425,98629.0,98628.0,0.43827591]
[1733494144614,0.0023112,98660.0,98659.0,0.0700008]
[1733494145218,0.31005874,98660.0,98644.0,0.0207263]
[1733494145558,0.202732,98652.0,98651.0,0.0470008]
[1733494145767,0.30776354,98652.0,98651.0,0.0470008]
[1733494145994,1.60503154,98652.0,98651.0,0.05727758]
[1733494146205,0.0033112,98660.0,98651.0,0.0470008]
[1733494146409,0.30774954,98659.0,98651.0,0.0470008]
[1733494146646,1.80774954,98659.0,98658.0,0.0470008]
[1733494147979,2.01346854,98659.0,98656.0,0.0470008]
[1733494148183,0.0765,98658.0,98651.0,0.0470008]
[1733494148396,0.202732,98652.0,98651.0,0.0470008]
[1733494148544,0.30776354,98652.0,98651.0,0.0470008]
[1733494149341,0.10503154,98652.0,98651.0,0.0470008]
[1733494150505,0.10503154,98652.0,98651.0,0.0480008]
[1733494150696,0.10503154,98652.0,98651.0,0.0470008]
[1733494150936,0.10603154,98652.0,98651.0,0.0470008]
[1733494151137,0.10803154,98652.0,98651.0,0.0470008]
[1733494151382,0.06703154,98652.0,98651.0,0.0470008]
[1733494151561,0.06503154,98652.0,98651.0,0.0470008]
[1733494151789,0.06803154,98652.0,98651.0,0.0470008]
[1733494151991,0.07003154,98652.0,98651.0,0.0470008]
[1733494152198,0.06703154,98652.0,98651.0,0.0470008]
[1733494152399,0.06903154,98652.0,98651.0,0.0470008]
[1733494153028,0.004,98652.0,98651.0,0.0700008]
[1733494153234,0.002,98652.0,98651.0,0.0700008]
[1733494153440,0.10803154,98652.0,98651.0,0.05317946]
[1733494153650,0.10603154,98652.0,98651.0,0.05317946]
[1733494153858,0.10603154,98652.0,98651.0,0.0470008]
[1733494154063,0.10803154,98652.0,98651.0,0.0700008]
[1733494154267,0.10503154,98652.0,98651.0,0.07639235]
[1733494154676,0.10703154,98652.0,98651.0,0.0700008]
[1733494154882,0.30776354,98652.0,98651.0,0.07639235]
[1733494155087,0.31076354,98652.0,98651.0,0.023]
[1733494155291,0.31076354,98652.0,98651.0,0.0700008]
[1733494155495,0.30776354,98652.0,98651.0,0.023]
[1733494155709,0.30976354,98652.0,98651.0,0.023]
[1733494155926,0.30976354,98652.0,98651.0,0.0700008]
[1733494156539,0.10703154,98652.0,98651.0,0.0700008]
[1733494156955,0.10703154,98652.0,98651.0,0.07533466]
[1733494157177,0.10903154,98652.0,98651.0,0.07533466]
[1733494157380,0.10703154,98652.0,98651.0,0.0700008]
[1733494157587,0.11003154,98652.0,98651.0,0.0700008]
[1733494157994,0.10503154,98652.0,98651.0,0.0700008]
[1733494158196,0.10803154,98652.0,98651.0,0.0700008]
[1733494158570,0.10603154,98652.0,98651.0,0.0700008]
[1733494158775,0.10803154,98652.0,98651.0,0.0700008]
[1733494159454,0.202734,98651.0,98650.0,0.0470008]
[1733494159672,0.30776554,98651.0,98650.0,0.0470008]
[1733494160837,0.30976554,98651.0,98650.0,0.0470008]
[1733494161187,0.31176554,98651.0,98650.0,0.0470008]
[1733494161391,0.30776554,98651.0,98650.0,0.0470008]
[1733494161784,0.30876554,98651.0,98650.0,0.0470008]
[1733494162015,0.10603154,98651.0,98650.0,0.0470008]
[1733494162263,0.10803154,98651.0,98650.0,0.0470008]
[1733494163328,0.202736,98650.0,98649.0,0.0700008]
[1733494163582,0.30776754,98650.0,98649.0,0.0700008]
[1733494164049,0.202782,98628.0,98627.0,0.0470008]
[1733494164287,0.30781354,98628.0,98627.0,0.0470008]
[1733494164481,0.10503154,98628.0,98621.0,0.0470008]
[1733494164685,0.30781554,98627.0,98621.0,0.0470008]
[1733494164884,0.30781554,98627.0,98626.0,0.0470008]
[1733494165098,0.202794,98622.0,98621.0,0.0470008]
[1733494165306,0.30782554,98622.0,98621.0,0.0470008]
[1733494167108,0.202806,98616.0,98614.0,0.0470008]
[1733494167308,0.20281,98614.0,98612.0,0.0470008]
[1733494167511,0.10503154,98613.0,98612.0,0.0470008]
[1733494167682,0.202825,98607.0,98606.0,0.0470008]
[1733494167884,0.30785654,98607.0,98606.0,0.0470008]
[1733494169088,0.10503154,98607.0,98606.0,0.0470008]
[1733494169317,0.0761,98630.0,98624.0,0.0470008]
[1733494169527,0.202788,98625.0,98624.0,0.0470008]
[1733494169733,0.30781954,98625.0,98624.0,0.0470008]
[1733494169948,0.10503154,98625.0,98624.0,0.0470008]
[1733494170202,0.20278,98629.0,98628.0,0.0470008]
[1733494170427,0.30781154,98629.0,98628.0,0.0470008]
[1733494170918,0.10503154,98629.0,98628.0,0.0470008]